Cogmind - Beta 12 X1 @@@ ROGUE MODE // 2023.02.22 @ 11:42:52 Player: jfk Result: Destroyed by Y-45 Defender with Beam Rifle Performance ------------- Evolutions (2) 1000 Regions Visited (7) 1400 Robots Destroyed (38) 190 Value Destroyed (746) 746 Prototype IDs (29) 580 Alien Tech Used (0) 0 Bonus (207) 207 TOTAL SCORE: 4123 Bonus ------- High Alert Combat Kills 12 Follower Combat Kills 195 Cogmind --------- Core Integrity 0/550 Matter 300/300 Energy 100/100 System Corruption 0% Temperature Cool (9) Movement Core (50) Location -8/Materials Parts ------- > --- POWER (1) -------- (None) > --- PROPULSION (6) --- (None) > --- UTILITY (2) ------ PSU Rigger > --- WEAPON (2) ------- (None) > --- INVENTORY (5) ---- Light Ion Engine Heavy Ion Engine Heavy Ion Engine Mini Grenade Launcher Peak State ------------ > --- POWER ------------ Ion Engine > --- PROPULSION ------- Flight Unit Flight Unit Flight Unit Cesium-ion Thruster > --- UTILITY ---------- Small Storage Unit PSU Rigger > --- WEAPON ----------- Light Assault Rifle Improved Assault Rifle > --- INVENTORY -------- Ion Engine Light Ion Engine Light Ion Engine Light Assault Rifle Improved Assault Rifle Improved Assault Rifle Rocket Launcher Mini Grenade Launcher [Rating: 21] Favorites ----------- Power Ion Engine Engine Ion Engine Propulsion Flight Unit Treads Light Treads Flight Unit Flight Unit Utility Small Storage Unit Device Seismic Detector Storage Small Storage Unit Processor Advanced Targeting Computer Weapon Assault Rifle Energy Gun Improved EM Shotgun Ballistic Gun Assault Rifle Build | -11 -10 -10 -9 -9 -9 -8 -8 ------- Run | Scr Mat Min Mat Min Exi Min Mat Slots Evolved 4 | . . . 2 . . . 2 Power . | . . . . . . . . Propulsion 4 | . . . 2 . . . 2 Utility . | . . . . . . . . Weapon . | . . . . . . . . Parts Attached 34 | 7 . . 11 2 1 1 12 Power 4 | 1 . . . . . . 3 Engine 4 | 1 . . . . . . 3 Core . | . . . . . . . . Reactor . | . . . . . . . . Propulsion 13 | 2 . . 4 1 . 1 5 Treads 2 | 2 . . . . . . . Leg . | . . . . . . . . Wheel . | . . . . . . . . Hover . | . . . . . . . . Flight 11 | . . . 4 1 . 1 5 Utility 4 | 2 . . . . 1 . 1 Device 2 | 1 . . . . 1 . . Storage 1 | 1 . . . . . . . Processor 1 | . . . . . . . 1 Hackware . | . . . . . . . . Protection . | . . . . . . . . Artifact . | . . . . . . . . Weapon 13 | 2 . . 7 1 . . 3 Energy Gun 1 | . . . 1 . . . . Energy Cannon . | . . . . . . . . Ballistic Gun 12 | 2 . . 6 1 . . 3 Ballistic Cannon . | . . . . . . . . Launcher . | . . . . . . . . Special Weapon . | . . . . . . . . Impact Weapon . | . . . . . . . . Slashing Weapon . | . . . . . . . . Piercing Weapon . | . . . . . . . . Special Melee Weapon . | . . . . . . . . Unidentified Prototypes 3 | . . . 2 . . . 1 Parts Lost 13 | . . . 1 . . . 12 Power 1 | . . . . . . . 1 Propulsion 7 | . . . . . . . 7 Utility 2 | . . . 1 . . . 1 Weapon 3 | . . . . . . . 3 Highest Loss Streak 5 | . . . 1 . . . 5 To Critical Strikes . | . . . . . . . . Average Slot Usage (%) 85 | . 100 100 79 88 98 100 50 Engine 11 | . 14 14 11 11 11 11 5 Treads 13 | . 28 28 13 . . . . Flight 16 | . . . 18 44 44 44 20 Device 9 | . 14 14 4 . 9 11 9 Storage 10 | . 14 14 11 11 11 11 5 Ballistic Gun 21 | . 28 28 21 22 22 22 9 Naked Turns . | . . . . . . . . Heaviest Build 16 | 15 15 15 15 14 16 16 16 Greatest Support 40 | 40 40 40 40 16 16 17 17 Greatest Overweight (x) 1 | . . . . . . . 1 Average Overweight (x) . | . . . . . . . . Largest Inventory Capacity 8 | 8 8 8 8 8 8 8 8 Average Capacity 7 | 7 8 8 8 8 8 8 6 Most Carried 8 | 6 7 8 8 8 8 8 8 Average Carried 7 | 4 6 7 7 8 8 8 6 Final Capacity 8 | 8 8 8 8 8 8 8 5 Final Carried 8 | 6 7 8 8 8 8 8 4 Class Distribution -------------------- 61% | Mutant 34% | Scavenger-Sprinter 3% | Scavenger-Mutant Dominant Class ---------------- Mutant | -10/Materials Mutant | -10/Mines Mutant | -9/Materials Scavenger-Sprinter | -9/Mines Scavenger-Sprinter | -9/Exiles Scavenger-Sprinter | -8/Mines Scavenger-Sprinter | -8/Materials Resources | -11 -10 -10 -9 -9 -9 -8 -8 ----------- Run | Scr Mat Min Mat Min Exi Min Mat Matter Collected 961 | 320 114 6 143 136 . 35 207 Remotely . | . . . . . . . . Salvage Created 1080 | 112 206 17 215 174 . . 356 Parts 82 | 5 14 . 20 18 . . 25 Haulers Intercepted 3 | . 1 . . . . . 2 Recyclers Shooed 1 | . . . 1 . . . . Parts Field Recycled . | . . . . . . . . Retrieved Matter . | . . . . . . . . Parts Self-Destructed . | . . . . . . . . Prevented . | . . . . . . . . Kills | -11 -10 -10 -9 -9 -9 -8 -8 ------- Run | Scr Mat Min Mat Min Exi Min Mat Combat Hostiles Destroyed 32 | . 6 1 9 9 . . 7 Guns 32 | . 6 1 9 9 . . 7 Classes Destroyed 7 | 2 3 . 1 . . . 1 Tunneler 2 | 2 . . . . . . . Hauler 3 | . 1 . . . . . 2 Recycler 1 | 1 . . . . . . . Swarmer 21 | . 3 1 6 8 . . 3 Grunt 9 | . 3 . 2 1 . . 3 Duelist 1 | . . . 1 . . . . Sentry 1 | . . . . . . . 1 Best Kill Streak 7 | 2 2 1 7 4 . . 3 Combat Bots Only 7 | . 2 1 7 4 . . 3 Max Kills in Single Turn 2 | 2 1 1 1 2 . . 1 Gunslinging 1 | . . . . 1 . . . Exploded . | . . . . . . . . Melee . | . . . . . . . . Uniques/NPCs Destroyed . | . . . . . . . . Combat | -11 -10 -10 -9 -9 -9 -8 -8 -------- Run | Scr Mat Min Mat Min Exi Min Mat Damage Taken 1975 | . 171 7 378 154 . . 1265 Core 722 | . 29 7 92 43 . . 551 Absorbed by Shields . | . . . . . . . . Core Remaining (%) 83 | 100 . 85 . . . 66 . Volleys Fired 156 | 9 19 1 20 14 . . 93 Largest 2 | 2 2 2 2 2 . . 2 Hottest 43 | 40 40 40 43 43 . . 43 Shots Fired 223 | 18 38 2 40 28 . . 97 Gun 223 | 18 38 2 40 28 . . 97 Cannon . | . . . . . . . . Launcher . | . . . . . . . . Special . | . . . . . . . . Kinetic 223 | 18 38 2 40 28 . . 97 Thermal . | . . . . . . . . Explosive . | . . . . . . . . Electromagnetic . | . . . . . . . . Robot Hit Streak 22 | 6 8 1 18 5 . . 22 Robot Miss Streak 8 | 2 2 1 1 4 . . 8 Penetration Max . | . . . . . . . . Secondary Targets 4 | . 1 . . 3 . . . Max Gunslinging Chain 1 | . 1 . . 1 . . . Shots Hit Robots 149 | 12 28 1 31 16 . . 61 Core Hits 61 | 4 10 1 16 10 . . 20 Critical Kills . | . . . . . . . . Critical Parts Destroyed . | . . . . . . . . Critical Strikes . | . . . . . . . . Melee Attacks . | . . . . . . . . Impact . | . . . . . . . . Slashing . | . . . . . . . . Piercing . | . . . . . . . . Sneak Attacks . | . . . . . . . . Combat Hostiles . | . . . . . . . . Follow-up Attacks . | . . . . . . . . Damage Inflicted 1844 | 157 381 32 381 180 . 1 712 Guns 1782 | 155 381 11 376 180 . . 679 Cannons . | . . . . . . . . Explosions . | . . . . . . . . Melee . | . . . . . . . . Ramming 62 | 2 . 21 5 . . 1 33 Kinetic 1782 | 155 381 11 376 180 . . 679 Thermal . | . . . . . . . . Explosive . | . . . . . . . . Electromagnetic . | . . . . . . . . Impact . | . . . . . . . . Slashing . | . . . . . . . . Piercing . | . . . . . . . . Highest Corruption . | . . . . . . . . Average Corruption . | . . . . . . . . Corruption Purged . | . . . . . . . . Corruption Blocked . | . . . . . . . . Overload Shots . | . . . . . . . . Overflow Damage . | . . . . . . . . Projectiles . | . . . . . . . . Explosions . | . . . . . . . . Melee . | . . . . . . . . Knockbacks . | . . . . . . . . Impact . | . . . . . . . . Kinetic . | . . . . . . . . Secondary . | . . . . . . . . Self-Inflicted Damage 14 | . . . . . . . 14 Shots . | . . . . . . . . Rammed 12 | 1 . 3 1 . . 1 6 Targets Rammed 12 | 1 . 3 1 . . 1 6 Kicked . | . . . . . . . . Crushed . | . . . . . . . . Highest Temperature 10 | . . . 10 10 . . 7 Average Temperature 4 | . . . 3 4 . . 4 Received Heat Transfer 651 | . 72 . 69 42 . . 468 Siege Activations . | . . . . . . . . Robots Corrupted . | . . . . . . . . Combat Hostiles . | . . . . . . . . Parts Fried . | . . . . . . . . Impact Corruptions . | . . . . . . . . Robots Melted . | . . . . . . . . Combat Hostiles . | . . . . . . . . Parts Melted . | . . . . . . . . Heat Transferred . | . . . . . . . . Parts Sabotaged . | . . . . . . . . Parts Stolen . | . . . . . . . . Parts Stripped . | . . . . . . . . Power Chain Reactions . | . . . . . . . . Missiles Intercepted . | . . . . . . . . Alert | -11 -10 -10 -9 -9 -9 -8 -8 ------- Run | Scr Mat Min Mat Min Exi Min Mat Peak Influence 500 | 15 219 169 426 500 . . 423 Initial 165 | . 9 85 50 165 . . . Average 142 | 5 81 98 177 282 . . 222 Maximum Alert Level 2 | . 1 . 2 2 . . 2 Low Security (%) 70 | 100 93 100 43 36 . 100 33 Level 1 25 | . 6 . 53 41 . . 56 Level 2 4 | . . . 3 21 . . 10 Level 3 . | . . . . . . . . Level 4 . | . . . . . . . . Level 5 . | . . . . . . . . High Security . | . . . . . . . . Max Security . | . . . . . . . . Squads Dispatched 7 | . 3 . 2 . . . 2 Investigation 2 | . 1 . 1 . . . . Extermination . | . . . . . . . . Reinforcement 5 | . 2 . 1 . . . 2 Assault . | . . . . . . . . Garrison . | . . . . . . . . Intercept . | . . . . . . . . Searches Triggered . | . . . . . . . . Construction Impeded . | . . . . . . . . Haulers Reinforced . | . . . . . . . . Active Scanning Responses . | . . . . . . . . Cargo Convoy Interrupts . | . . . . . . . . Stealth | -11 -10 -10 -9 -9 -9 -8 -8 --------- Run | Scr Mat Min Mat Min Exi Min Mat Distress Signals 9 | . 1 1 4 . . . 3 Communications Jammed . | . . . . . . . . Distress Signals . | . . . . . . . . Times Spotted 109 | . 11 2 33 19 . . 44 Peak Tracking Total 18 | . 3 2 18 9 . . 11 Tactical Retreats 10 | . . . 2 3 . . 5 Traps | -11 -10 -10 -9 -9 -9 -8 -8 ------- Run | Scr Mat Min Mat Min Exi Min Mat Traps Triggered 1 | . . . . . . . 1 Indirectly . | . . . . . . . . Trap Hack Attempts . | . . . . . . . . Triggered . | . . . . . . . . Disarmed . | . . . . . . . . Reprogrammed . | . . . . . . . . Reused . | . . . . . . . . Traps Extracted . | . . . . . . . . Installed . | . . . . . . . . Triggered . | . . . . . . . . Machines | -11 -10 -10 -9 -9 -9 -8 -8 ---------- Run | Scr Mat Min Mat Min Exi Min Mat Machines Disabled 7 | . . 6 . . . . 1 Max in Single Turn . | . . . . . . . . Machines Sabotaged . | . . . . . . . . Garrisons Compromised . | . . . . . . . . Overloaded Fab Kills . | . . . . . . . . Hacking | -11 -10 -10 -9 -9 -9 -8 -8 --------- Run | Scr Mat Min Mat Min Exi Min Mat Machines Accessed 11 | . 2 . 2 . 1 . 6 Terminals 10 | . 2 . 2 . . . 6 Fabricators . | . . . . . . . . Repair Stations . | . . . . . . . . Recycling Units . | . . . . . . . . Scanalyzers . | . . . . . . . . Garrison Access . | . . . . . . . . Total Hacks 28 | . 5 . 3 . 1 . 19 Successful 14 | . 1 . 2 . 1 . 10 Failed 14 | . 4 . 1 . . . 9 Catastrophic 2 | . 1 . . . . . 1 Database Lockouts . | . . . . . . . . Manual 17 | . 2 . 3 . 2 . 10 Terminals 27 | . 5 . 3 . . . 19 Fabricators . | . . . . . . . . Repair Stations . | . . . . . . . . Recycling Units . | . . . . . . . . Scanalyzers . | . . . . . . . . Garrison Access . | . . . . . . . . Terminal Hacks 13 | . 1 . 1 . 1 . 10 Prototype ID Bank 1 | . . . . . . . 1 Level Access Points 1 | . . . . . . . 1 Branch Access Points 3 | . 1 . 1 . . . 1 Emergency Access Points 1 | . . . . . . . 1 Terminal Index 1 | . . . . . . . 1 Dispatch Records 2 | . . . . . . . 2 Hauler Manifests 1 | . . . . . . . 1 Zone Layout 2 | . . . . . . . 2 EX-Prototype ID Bank 1 | . . . . . 1 . . Fabricator Hacks . | . . . . . . . . Repair Station Hacks . | . . . . . . . . Recycling Unit Hacks . | . . . . . . . . Scanalyzer . | . . . . . . . . Garrison Access Hacks . | . . . . . . . . Unauthorized Hacks 1 | . . . 1 . . . . Terminals 1 | . . . 1 . . . . Assimilate 1 | . . . 1 . . . . Fabricators . | . . . . . . . . Repair Stations . | . . . . . . . . Recycling Units . | . . . . . . . . Scanalyzers . | . . . . . . . . Garrison Access . | . . . . . . . . Data Cores Recovered . | . . . . . . . . Used . | . . . . . . . . Hacking Detections 8 | . 2 . 1 . . . 5 Full Trace Events 2 | . 1 . 1 . . . . Feedback Events . | . . . . . . . . Feedback Blocked . | . . . . . . . . Robot Schematics Acquired . | . . . . . . . . Robots Built . | . . . . . . . . Authchips . | . . . . . . . . Time . | . . . . . . . . Total Robot Build Rating . | . . . . . . . . Part Schematics Acquired . | . . . . . . . . Parts Built . | . . . . . . . . Authchips . | . . . . . . . . Time . | . . . . . . . . Total Part Build Rating . | . . . . . . . . Parts Repaired . | . . . . . . . . Time . | . . . . . . . . Parts Recycled . | . . . . . . . . Recycled Matter . | . . . . . . . . Retrieved Matter . | . . . . . . . . Retrieved Components . | . . . . . . . . Parts Scanalyzed . | . . . . . . . . Part Schematics Acquired . | . . . . . . . . Parts Damaged . | . . . . . . . . Bothacking | -11 -10 -10 -9 -9 -9 -8 -8 ------------ Run | Scr Mat Min Mat Min Exi Min Mat Used RIF Installer . | . . . . . . . . Robots Hacked . | . . . . . . . . Non-combat . | . . . . . . . . Combat . | . . . . . . . . Robot Hacks Applied . | . . . . . . . . Relay Couplers Released . | . . . . . . . . Fabnet Peak Effective % . | . . . . . . . . Robots Rewired 3 | . . . . . 3 . . Allies Hacked . | . . . . . . . . Hacks Repelled . | . . . . . . . . Allies | -11 -10 -10 -9 -9 -9 -8 -8 -------- Run | Scr Mat Min Mat Min Exi Min Mat Total Allies 5 | . . 2 . . 3 . . Largest Group 3 | . . 2 . . 3 3 3 Highest-Rated Group 39 | . . 39 . . 37 37 37 Highest-Rated Ally 31 | . . 31 . . 21 21 21 Total Orders . | . . . . . . . . Ally Attacks 42 | . . 11 . . . . 31 Total Damage 851 | . . 249 . . . . 602 Kills 13 | . . 5 . . . . 8 Allies Corrupted 1 | . . . . . . . 1 Allies Melted . | . . . . . . . . Intel | -11 -10 -10 -9 -9 -9 -8 -8 ------- Run | Scr Mat Min Mat Min Exi Min Mat Robot Analysis Total . | . . . . . . . . Derelict Logs Recovered 4 | . . 2 . 2 . . . Drone Launches . | . . . . . . . . Drone Recoveries . | . . . . . . . . Exploration | -11 -10 -10 -9 -9 -9 -8 -8 ------------- Run | Scr Mat Min Mat Min Exi Min Mat Turns Passed 2557 | 156 244 785 354 192 215 77 534 Spaces Moved 2929 | 78 114 486 401 455 430 114 851 Core 87 | 12 . . . . . . 75 Treads 762 | 66 114 486 96 . . . . Legs . | . . . . . . . . Wheels . | . . . . . . . . Hover . | . . . . . . . . Flight 2080 | . . . 305 455 430 114 776 Fastest Speed 29 | 50 160 160 31 31 31 29 29 Average Speed 65 | 143 160 160 61 31 31 30 35 Slowest Speed 160 | 160 160 160 160 31 31 31 120 Overloaded Moves . | . . . . . . . . Propulsion Burnouts . | . . . . . . . . Robots Hopped 50 | . . . 12 12 1 1 24 Cave-ins Triggered . | . . . . . . . . Exploration Rate (%) 55 | 7 31 90 31 86 89 35 71 Regions Visited 7 Branch Regions 4 Pre-discovered Areas 2 | . . 1 . 1 . . . Known Exits Taken 4 | . 1 . 1 1 1 . . Unknown Exits Taken 3 | 1 . 1 . . . 1 . Scrap Searched 5 | . . 2 . 1 . 2 . Spaces Dug . | . . . . . . . . Terrain Destroyed . | . . . . . . . . Melee . | . . . . . . . . Projectile . | . . . . . . . . AOE . | . . . . . . . . Terrain Rammed . | . . . . . . . . Walls Destroyed . | . . . . . . . . Machines Disabled . | . . . . . . . . Actions | -11 -10 -10 -9 -9 -9 -8 -8 --------- Run | Scr Mat Min Mat Min Exi Min Mat Total 3295 | 100 138 490 456 469 509 153 980 Wait 142 | . 5 . 11 9 51 38 28 Move 2829 | 77 113 485 378 431 427 111 807 Hop 43 | . . . 10 11 1 1 20 Pick Up 25 | 6 1 1 13 . . . 4 Fast Attach 16 | 7 . . 1 . 1 . 7 Attach 4 | . . . 2 . . . 2 Detach . | . . . . . . . . Swap 14 | . . . 8 2 . 1 3 Drop 25 | . . . 12 2 . 1 10 Fire 156 | 9 19 1 20 14 . . 93 Melee . | . . . . . . . . Ram 7 | . . . . . . 1 6 Kick . | . . . . . . . . Crush 5 | 1 . 3 1 . . . . Escape Stasis . | . . . . . . . . Rewire 29 | . . . . . 29 . . Trap . | . . . . . . . . Miscellaneous . | . . . . . . . . Route ------- -11/Scrapyard -10/Materials -10/Mines (discovered 2 exits: *Mat x2) -9/Materials -9/Mines (discovered 4 exits: *Mat x2 / *Exi / [*Zio]) -9/Exiles (discovered 2 exits: *Min x2) -8/Mines -8/Materials (discovered 5 exits: *Fac x3 / Sto x2) History --------- Turn | Location | Event 7 | -11/Scrapyard | Discovered new exit (range 16) 157 | -11/Scrapyard | Entered Materials 194 | -10/Materials | Identified exit to Mines 310 | -10/Materials | Build established: Mutant 401 | -10/Materials | Entered Mines 468 | -10/Mines | Received a Rocket Launcher from a helpful Derelict 513 | -10/Mines | Discovered new exit (range 15) 756 | -10/Mines | Learned location of Zion (-7) 821 | -10/Mines | Discovered new exit (range 9) 1186 | -10/Mines | Entered Materials 1186 | -9/Materials | Evolved 2 slots: Propulsion x2 1187 | -9/Materials | Identified exit to Mines 1361 | -9/Materials | Destroyed 7 combat bots 1540 | -9/Materials | Entered Mines 1541 | -9/Mines | Learned location of Storage (-8) 1547 | -9/Mines | A Derelict revealed a hidden shortcut to a safe place 1641 | -9/Mines | Discovered new exit (range 5) 1652 | -9/Mines | Identified exit to Exiles 1663 | -9/Mines | Discovered new exit (range 13) 1707 | -9/Mines | Build established: Scavenger-Sprinter 1731 | -9/Mines | Deemed a non-threat by the Exiles lab entrance 1732 | -9/Mines | Entered Exiles 1732 | -9/Exiles | Found Exiles lab destroyed 1733 | -9/Exiles | Identified exit to Mines 1765 | -9/Exiles | Opened EX-Vault 1767 | -9/Exiles | Found PSU Rigger 1894 | -9/Exiles | Discovered exit to Mines (range 10) 1947 | -9/Exiles | Entered Mines 1947 | -8/Mines | Accompanied by 3 allies 1969 | -8/Mines | Discovered new exit (range 15) 2024 | -8/Mines | Entered Materials 2024 | -8/Materials | Accompanied by 3 allies 2024 | -8/Materials | Evolved 2 slots: Propulsion x2 2025 | -8/Materials | Identified exit to Storage 2065 | -8/Materials | Discovered new exit (range 10) 2091 | -8/Materials | Identified exit to Factory 2411 | -8/Materials | Lost 3 parts (1p2n) 2440 | -8/Materials | Core integrity fell below 50% 2551 | -8/Materials | Core integrity fell below 20% 2555 | -8/Materials | Lost 5 parts (3n2w) 2558 | -8/Materials | Destroyed by Y-45 Defender with Beam Rifle Last Messages --------------- 02459_ Imp. Assault Rifle destroyed. 02464_ G-50 Soldier destroyed. 02466_ Acquired 35 matter. 02469_ Slammed into T-07 Excavator. 02470_ Acquired Flight Unit. 02471_ Acquired 5 matter. 02474_ Acquired Flight Unit. 02477_ Acquired Lgt. Ion Engine. 02477_ K-01 Serf collects debris. 02478_ Flight Unit destroyed. 02501_ Imp. Assault Rifle destroyed. 02518_ Acquired Adv. Targeting Computer. 02524_ Flight Unit destroyed. 02537_ Acquired 15 matter. 02537_ W-25 Informer sends out distress signal. 02553_ Slammed into W-25 Informer. 02556_ Adv. Targeting Computer destroyed. 02557_ Slammed into W-25 Informer. 02557_ Destabilizing: Core damaged (-16). 02558_ Slammed into W-25 Informer. Map ----- +----------------------------------------------------+ | ?????????????????????????????????????????????????? | | ?????????????????????????????????????????????????? | | ?????????????????????????????????????????????????? | | ?????????????????????????????????????????????????? | | ?????????????????????????????????????????????????? | | ?????????????????????????????????????????????????? | | ?????????????????????????????????????????????????? | | ?????????????>???????????????????????????????????? | | ?????????????????????????????????????????????????? | | ?????????????????????????????????????????????????? | | ?????????????????????????????????????????????????? | | ?????????????????????????????????????????????????? | | ?????????????????????????????????????????????????? | | ?????????????????????????????????????????????????? | | ?????????????????????????????????????????????????? | | ?????????????????????????????????????????????????? | | ?????????????????????????????????????????????????? | | ????????????????????????????????????????########## | | ????????????????????????????????????????#] ! | | ????????????????????????????????????????# | | ????????????????????????????????????????# | | ????????????????????????#+#?????????????# | | ????????????????????????# #?????????????# """ """ | | ????????????????????????# #?????????????# """ """ | | ????????????????????????#w#?????????????# """ """ | | ????????????????????????#@#?????????????# | | ????????????????????????#%#?????????????#####+#### | | ???????????????######???# #?????????????????# #??? | | ???????????????# ??# #??????????????####+#### | | ???????????????# ?# #??????????????# | | ???????????????# #Y###????????????# """ % | | ???????????????# = # #????????????# """ | | ??????? ?????# + #????????????# """ | | ??????# ?????# !!! # #????????????# """ | | ??????# ?????# !! %# #????????????# """ | | ??????# #????# !! ?# #????????????# | | ??????# #???# ??# #????????????# | | ??????# #???#######??## ##???????????######### | | ??????# #??########### #???????????????????? | | ??????# #??# #???????????????????? | | ??????# #??# Y #???????????????????? | | ??????# #??# #???????????????????? | | ??????# #??# ####### #???????????????????? | | ??????# #??# #?????#########?????????????????? | | ??????# #??# #???????# #################+# | | ??????# #### #???????# | | " ????# #???????# ^ ^ ^ | | " ??# #???????# | | " # #???????# | | " + ########??######## ! | +----------------------------------------------------+ Best States ------------- Heat Dissipation 31 Energy Generation 10 Energy Capacity 250 Matter Stores 300 Matter Capacity 300 Sight Range 16 Terrain Scan Density 10 Evasion (%) 64 Targeting Accuracy 8 Recoil Reduction 2 Item Schematics ----------------- None Robot Schematics ------------------ None Fabricated ------------ Nothing Alien Tech Used ----------------- None Achievements -------------- None Challenges ------------ None Game ------ Seed StasisResetWings Manual? 0 Play Time 00:44:48 Cumulative 385.9 hours Start 2022.12.21 @ 15:31:10 End 2023.02.22 @ 11:42:52 Sessions 4 Manual Loads 0 Difficulty Rogue Special Mode None Game No. 129 Rogue 17 Adventurer 0 Explorer 112 Win Type - Total 26 Types 15/3/1/1/1/2/1/2/0 Lore% 70 Gallery% 84 Achievement% 82 Wizard Run 0 Options --------- ASCII 1 Keyboard 1 Movement Vi Keybinds 0 Fullscreen 1 Font 18/SmallcapsGlow Map View 76x50 Tactical HUD 1 Map Filters NONE Filters NONE Steam 1 RUN: 88e96b72-d0e0-40b1-b862-32fa23526868